bitfinex-derivatives/quotes_SOLF0:USTF0_20260218
["timestamp","ask_amount","ask_price","bid_price","bid_amount"]
[1771437068957,9.09818276,82.249,82.206,9.53656162]
[1771437069459,9.09818276,82.249,82.211,9.53656162]
[1771437070558,9.09818276,82.249,82.212,10.9522]
[1771437071459,9.09818276,82.249,82.212,20.48876162]
[1771437071854,9.09818276,82.249,82.213,9.53656162]
[1771437072761,20.04418276,82.259,82.216,9.53656162]
[1771437072960,9.09818276,82.258,82.216,9.53656162]
[1771437073259,9.09818276,82.256,82.216,9.53656162]
[1771437074462,9.09818276,82.256,82.221,9.53656162]
[1771437074662,10.9467,82.254,82.221,9.53656162]
[1771437076266,9.3245595,82.25,82.215,10.9518]
[1771437076461,9.3245595,82.249,82.204,10.9532]
[1771437076665,9.3245595,82.249,82.205,8.96694588]
[1771437077664,10.9481,82.243,82.205,8.96694588]
[1771437080164,10.949,82.237,82.205,8.96694588]
[1771437080959,9.3245595,82.24,82.205,8.96694588]
[1771437082775,9.3245595,82.24,82.206,10.9529]
[1771437082964,9.3245595,82.24,82.206,19.91984588]
[1771437083164,9.3245595,82.24,82.207,8.96694588]
[1771437083966,10.9486,82.239,82.207,8.96694588]
[1771437089585,20.2731595,82.239,82.207,8.96694588]
[1771437090173,9.3245595,82.231,82.194,233.42128314]
[1771437090479,9.3245595,82.231,82.157,61.0]
[1771437090480,3.02787463,82.21,82.164,8.96694588]
[1771437090678,9.3245595,82.178,82.129,8.96694588]
[1771437090877,9.3245595,82.169,82.129,8.96694588]
[1771437091076,9.3245595,82.169,82.131,8.96694588]
[1771437091282,10.957,82.176,82.138,8.96694588]
[1771437091880,9.3245595,82.175,82.138,8.96694588]
[1771437092278,3.02787463,82.17,82.138,8.96694588]
[1771437093479,9.3245595,82.171,82.138,8.96694588]
[1771437093875,9.3245595,82.171,82.13,3.02787463]
[1771437094077,9.3245595,82.166,82.125,14.08110113]
[1771437094478,9.3245595,82.159,82.125,14.08110113]
[1771437095382,9.3245595,82.159,82.125,5.11415525]
[1771437095886,9.3245595,82.156,82.125,5.11415525]
[1771437097188,9.3245595,82.153,82.125,5.11415525]
[1771437097682,9.3245595,82.153,82.088,88.81850219]
[1771437097683,9.3245595,82.153,82.09,8.96694588]
[1771437097884,9.3245595,82.139,82.091,8.96694588]
[1771437098276,9.3245595,82.151,82.102,8.96694588]
[1771437098788,9.3245595,82.151,82.11,3.02787463]
[1771437099090,9.3245595,82.151,82.111,8.96694588]
[1771437099286,10.9622,82.137,82.082,10.9695]
[1771437099478,9.3245595,82.136,82.083,8.96694588]
[1771437099887,9.3245595,82.126,82.083,8.96694588]
[1771437100188,58.3848,82.174,82.069,8.96694588]
[1771437100189,3.02787463,82.11,82.069,8.96694588]
[1771437100379,9.3245595,82.119,82.069,8.96694588]
[1771437100578,10.9647,82.118,82.069,8.96694588]
[1771437100779,9.3245595,82.117,82.069,8.96694588]
[1771437101087,3.02787463,82.11,82.069,8.96694588]
[1771437101289,9.3245595,82.109,82.06,3.02787463]
[1771437102185,9.3245595,82.109,82.056,26.98483899]
[1771437102186,9.3245595,82.109,82.066,10.9716]
[1771437102582,9.3245595,82.109,82.067,8.96694588]
[1771437103395,9.3245595,82.106,82.067,8.96694588]
[1771437103690,9.3245595,82.118,82.075,14.08421667]
[1771437103986,9.3245595,82.117,82.075,14.08421667]
[1771437105784,9.38012416,82.115,82.075,14.08421667]
[1771437106989,9.38012416,82.115,82.076,9.18284463]
[1771437107385,10.9655,82.113,82.076,9.18284463]
[1771437110287,20.34562416,82.113,82.076,9.18284463]
[1771437110588,9.38012416,82.113,82.076,9.18284463]
[1771437112292,9.38012416,82.113,82.076,20.15314463]
[1771437113390,2.11961189,82.167,82.075,5.11727079]
[1771437113391,9.38012416,82.131,82.091,9.18284463]
[1771437113595,9.38012416,82.159,82.101,9.18284463]
[1771437113796,9.38012416,82.159,82.11,12.22111834]
[1771437114191,9.38012416,82.148,82.11,20.14854463]
[1771437114385,9.38012416,82.148,82.11,9.18284463]
[1771437114591,9.38012416,82.139,82.098,9.18284463]
[1771437114985,9.38012416,82.136,82.098,20.15014463]
[1771437120289,9.38012416,82.136,82.099,9.53928465]
[1771437123797,9.38012416,82.136,82.101,10.967]
[1771437125099,9.38012416,82.136,82.102,9.53928465]
[1771437125501,9.38012416,82.136,82.109,10.9659]
[1771437130103,21.9141,82.176,82.077,61.0]
[1771437130104,10.9593,82.159,82.121,9.53928465]
[1771437130302,9.56861831,82.167,82.121,9.53928465]
[1771437131703,9.56861831,82.167,82.13,10.9631]
[1771437133509,9.56861831,82.164,82.124,10.9639]
[1771437133708,21.9091,82.195,82.085,61.0]
[1771437133709,3.03827371,82.15,82.1,3.03827371]
[1771437133903,9.56861831,82.139,82.099,9.53928465]
[1771437134706,10.9629,82.132,82.099,9.53928465]
[1771437134908,9.56861831,82.139,82.099,9.53928465]
[1771437135807,20.53061831,82.139,82.102,10.9668]
[1771437136200,20.78719285,82.12,82.08,3.03827371]
[1771437136410,9.82269285,82.134,82.081,9.0040968]
[1771437137711,10.9634,82.128,82.082,9.0040968]
[1771437137906,3.03827371,82.13,82.082,9.0040968]
[1771437138102,3.03827371,82.12,82.071,9.0040968]
[1771437138302,12.86096656,82.11,82.071,9.0040968]
[1771437139110,9.82269285,82.109,82.071,9.0040968]
[1771437139615,9.82269285,82.109,82.032,61.0]
[1771437139616,9.82269285,82.099,82.075,7.079e-05]
[1771437141112,3.03827371,82.1,82.075,7.079e-05]
[1771437141113,20.79039285,82.096,82.075,7.079e-05]
[1771437142718,9.82269285,82.095,82.075,7.079e-05]
[1771437144517,14.00687371,82.09,82.075,7.079e-05]
[1771437144722,9.82269285,82.106,82.075,7.079e-05]
[1771437145511,3.03827371,82.1,82.075,7.079e-05]
[1771437146618,20.78909285,82.106,82.075,7.079e-05]
[1771437147110,9.82269285,82.105,82.075,7.079e-05]
[1771437147315,9.82269285,82.099,82.075,7.079e-05]
[1771437147514,3.03827371,82.09,82.075,7.079e-05]
[1771437147716,10.9686,82.089,82.075,7.079e-05]
[1771437148521,76.56,82.1,82.075,7.079e-05]
[1771437148818,3.03827371,82.1,82.075,7.079e-05]
[1771437149215,10.9674,82.098,82.075,7.079e-05]
[1771437149421,3.03827371,82.09,82.075,7.079e-05]
[1771437149624,9.82269285,82.089,82.075,7.079e-05]
[1771437149814,9.82269285,82.098,82.075,7.079e-05]
[1771437150012,20.79069285,82.094,82.075,7.079e-05]
[1771437150216,3.03827371,82.09,82.058,9.0040968]
[1771437150925,76.56,82.094,82.058,9.0040968]
[1771437151219,3.03827371,82.1,82.058,9.0040968]
[1771437151622,3.03827371,82.09,82.059,9.0040968]
[1771437151814,3.03827371,82.08,82.056,18.01789311]
[1771437152019,9.82269285,82.089,82.056,18.01789311]
[1771437152215,9.82269285,82.089,82.071,0.07682029]
[1771437152421,76.56,82.099,82.071,0.07682029]
[1771437152621,86.38269285,82.099,82.071,0.07682029]
[1771437153126,9.82269285,82.098,82.071,0.07682029]
[1771437153326,3.03827371,82.09,82.071,0.07682029]
[1771437153519,9.82269285,82.079,82.056,18.01789311]
[1771437154329,10.9688,82.088,82.056,18.01789311]
[1771437156019,20.79149285,82.088,82.056,18.01789311]
[1771437157627,9.82269285,82.087,82.056,18.01789311]
[1771437161526,10.969,82.086,82.056,18.01789311]
[1771437161725,20.79169285,82.086,82.056,18.01789311]
[1771437161931,3.03827371,82.08,82.056,18.01789311]
[1771437162432,9.82269285,82.085,82.056,18.01789311]
[1771437164933,10.9675,82.098,82.058,9.0040968]
[1771437165130,87.5475,82.098,82.058,9.0040968]
[1771437165328,10.9675,82.098,82.058,9.0040968]
[1771437165525,76.58,82.097,82.058,9.0040968]
[1771437165834,76.58,82.097,82.06,10.9724]
[1771437166226,76.58,82.102,82.064,9.39361183]
[1771437166431,12.07358809,82.1,82.064,9.39361183]
[1771437168425,76.58,82.105,82.069,9.39361183]
[1771437168624,76.58,82.106,82.069,9.39361183]
[1771437169426,9.03531438,82.112,82.071,9.39361183]
[1771437169626,3.03827371,82.11,82.071,9.39361183]
[1771437170634,10.9665,82.105,82.071,9.39361183]
[1771437171833,20.00181438,82.105,82.071,9.39361183]
[1771437172033,10.9669,82.102,82.071,9.39361183]
[1771437172936,9.03531438,82.104,82.072,20.36441183]
[1771437173339,76.58,82.106,82.073,9.39361183]
[1771437173537,79.61913046,82.12,82.073,9.39361183]
[1771437174037,88.65444484,82.12,82.073,9.39361183]
[1771437174237,12.07444484,82.12,82.081,10.9695]
[1771437174438,76.58,82.119,82.081,10.9695]
[1771437174639,85.61531438,82.119,82.081,10.9695]
[1771437175735,10.9648,82.118,82.081,10.9695]
[1771437175933,10.9648,82.118,82.082,9.39361183]
[1771437176636,9.03531438,82.119,82.087,20.36231183]
[1771437176843,9.03531438,82.119,82.07,3.03913046]
[1771437176844,76.58,82.121,82.088,9.39361183]
[1771437177735,76.58,82.121,82.09,10.9684]
[1771437179540,76.58,82.121,82.091,8.99323706]
[1771437179741,76.58,82.124,82.091,8.99323706]
[1771437181344,3.03913046,82.11,82.068,8.99323706]
[1771437181539,9.79000141,82.109,82.068,8.99323706]
[1771437181740,20.75700141,82.102,82.068,8.99323706]
[1771437181938,3.03913046,82.1,82.068,8.99323706]
[1771437182540,0.07682063,82.093,82.068,8.99323706]
[1771437183338,36.55,82.15,82.056,18.01789311]
[1771437183339,76.58,82.122,82.071,8.99323706]
[1771437183542,76.58,82.122,82.056,18.01789311]
[1771437183543,76.58,82.123,82.081,8.99323706]
[1771437183745,76.58,82.122,82.081,8.99323706]
[1771437184548,10.9636,82.127,82.088,8.99323706]
[1771437184744,76.58,82.126,82.088,8.99323706]
[1771437185349,76.58,82.126,82.099,0.07687956]
[1771437186552,10.9636,82.127,82.099,0.07687956]
[1771437186553,76.58,82.125,82.099,0.07687956]
[1771437188050,9.79000141,82.138,82.099,9.07011662]
[1771437188249,76.58,82.137,82.099,9.07011662]
[1771437188549,76.58,82.137,82.099,8.99323706]
[1771437189546,9.79000141,82.15,82.103,8.99323706]
[1771437189746,76.58,82.149,82.111,8.99323706]
[1771437191746,76.58,82.149,82.115,8.99323706]
[1771437192056,76.58,82.15,82.115,8.99323706]
[1771437192648,76.58,82.15,82.117,8.99323706]
[1771437192851,23.78693187,82.17,82.121,8.99323706]
[1771437193045,76.58,82.169,82.121,8.99323706]
[1771437193247,86.37000141,82.169,82.121,8.99323706]
[1771437193654,9.79000141,82.168,82.126,10.9636]
[1771437194750,9.79000141,82.168,82.126,19.95683706]
[1771437194957,76.58,82.169,82.134,8.99323706]
[1771437195151,9.28605845,82.178,82.134,8.99323706]
[1771437195347,76.58,82.171,82.134,8.99323706]
[1771437195554,76.58,82.171,82.136,10.9622]
[1771437195753,76.58,82.173,82.136,10.9622]
[1771437196151,9.28605845,82.178,82.134,8.99323706]
[1771437196751,9.28605845,82.178,82.102,76.58]
[1771437196752,85.86605845,82.178,82.141,9.37772496]
[1771437197755,85.86605845,82.178,82.145,10.961]
[1771437198558,9.28605845,82.178,82.145,10.961]
[1771437198957,9.28605845,82.178,82.137,10.9622]
[1771437199155,9.28605845,82.178,82.137,20.33992496]
[1771437199554,9.28605845,82.176,82.137,9.37772496]
[1771437199760,9.28605845,82.176,82.13,9.37772496]
[1771437200460,9.28605845,82.174,82.13,9.37772496]
[1771437200865,9.28605845,82.174,82.131,10.9629]
[1771437201366,87.5372,82.175,82.132,9.37772496]
[1771437201367,76.58,82.175,82.132,9.37772496]
[1771437201567,9.28605845,82.179,82.132,9.37772496]
[1771437201867,76.58,82.177,82.132,9.37772496]
[1771437202660,76.58,82.177,82.138,10.962]
[1771437203262,9.28605845,82.176,82.149,0.07670895]
[1771437203468,85.86605845,82.175,82.149,0.07670895]
[1771437203668,9.28605845,82.174,82.149,0.07670895]
[1771437206270,76.58,82.173,82.149,0.07670895]
[1771437208268,9.28605845,82.174,82.149,0.07670895]
[1771437211378,10.9575,82.173,82.149,0.07670895]
[1771437214481,76.58,82.172,82.149,0.07670895]
[1771437216773,20.24375845,82.171,82.149,0.07670895]
[1771437216972,20.24375845,82.171,82.132,9.37772496]
[1771437216973,9.28605845,82.17,82.132,9.37772496]
[1771437218686,9.28605845,82.17,82.135,9.37772496]
[1771437219182,85.88605845,82.17,82.135,9.37772496]
[1771437220291,9.28605845,82.169,82.135,9.37772496]
[1771437221379,9.28605845,82.163,82.12,3.03913046]
[1771437221579,9.28605845,82.161,82.119,9.37772496]
[1771437222684,9.28605845,82.161,82.122,10.9641]
[1771437225585,12.20382254,82.16,82.122,10.9641]
[1771437226090,9.16469208,82.159,82.122,20.09653703]
[1771437228089,9.16469208,82.159,82.124,20.09623703]
[1771437228289,9.16469208,82.159,82.125,9.13243703]
[1771437229686,9.16469208,82.159,82.127,20.09583703]
[1771437230998,9.16469208,82.159,82.127,9.13243703]
[1771437231890,9.16469208,82.159,82.129,10.9632]
[1771437232189,9.16469208,82.159,82.13,9.13243703]
[1771437234791,76.6,82.162,82.134,9.13243703]
[1771437235093,9.16469208,82.169,82.123,9.13243703]
[1771437235295,9.16469208,82.168,82.123,9.13243703]
[1771437235789,9.16469208,82.159,82.123,9.13243703]
[1771437237994,9.16469208,82.159,82.124,10.9639]
[1771437238490,9.16469208,82.159,82.129,10.9632]
[1771437238698,9.16469208,82.159,82.129,20.55673783]
[1771437240294,21.9085,82.197,82.095,12.17]
[1771437240295,9.43304075,82.183,82.135,9.59353783]
[1771437240699,9.43304075,82.181,82.135,9.59353783]
[1771437240892,3.03395789,82.15,82.106,39.7441477]
[1771437241195,76.6,82.149,82.106,39.7441477]
[1771437242400,87.5606,82.149,82.106,39.7441477]
[1771437243100,10.9593,82.159,82.108,39.88850581]
[1771437243302,76.6,82.158,82.108,39.88850581]
[1771437243996,3.03395789,82.15,82.108,39.88850581]
[1771437246504,76.6,82.151,82.11,39.66746075]
[1771437247603,76.6,82.151,82.113,39.67014483]
[1771437248398,21.9084,82.197,82.101,39.67014483]
[1771437248399,3.03395789,82.14,82.101,39.67014483]
[1771437248698,3.03395789,82.13,82.085,39.65725674]
[1771437249005,3.03395789,82.12,82.085,39.65725674]
[1771437249698,76.6,82.124,82.085,39.65725674]
[1771437250296,10.9636,82.127,82.085,39.65725674]
[1771437250494,3.03395789,82.12,82.085,39.65725674]
[1771437253004,76.6,82.125,82.085,39.65725674]
[1771437254007,10.964,82.124,82.085,39.65725674]
[1771437257007,76.6,82.126,82.087,39.75747154]
[1771437257213,10.9631,82.131,82.091,39.75747154]
[1771437257804,3.03395789,82.14,82.097,10.9675]
[1771437257805,10.9621,82.138,82.097,10.9675]
[1771437258106,21.9129,82.181,82.101,39.75973278]
[1771437258403,3.03395789,82.14,82.101,39.75973278]
[1771437259211,10.9627,82.134,82.101,39.75973278]
[1771437260010,3.03395789,82.13,82.101,39.75973278]
[1771437261913,87.5627,82.134,82.101,39.75973278]
[1771437265720,10.9631,82.131,82.101,39.75973278]
[1771437267719,87.5631,82.131,82.101,39.75973278]
[1771437268515,10.9631,82.131,82.101,39.75973278]
[1771437271120,87.5631,82.131,82.101,39.75973278]
[1771437271522,36.55,82.174,82.101,39.75973278]
[1771437271821,3.03395789,82.16,82.111,39.8070925]
[1771437272321,76.6,82.159,82.111,39.8070925]
[1771437272721,10.9604,82.151,82.113,39.67619129]
[1771437272922,3.03395789,82.14,82.104,39.67619129]
[1771437273216,3.03395789,82.13,82.104,39.67619129]
[1771437274018,10.9629,82.132,82.104,39.67619129]
[1771437275925,10.9629,82.132,82.093,10.968]
[1771437276219,10.9629,82.132,82.094,39.6452494]
[1771437277118,10.9642,82.123,82.094,39.6452494]
[1771437277815,13.99705789,82.13,82.094,39.6452494]
[1771437278023,76.6,82.133,82.094,39.6452494]
[1771437279223,10.9638,82.125,82.094,39.6452494]
[1771437280726,3.03395789,82.12,82.083,260.83626954]
[1771437280919,3.03395789,82.11,82.063,39.66923576]
[1771437281120,79.63395789,82.11,82.063,39.66923576]
[1771437281730,3.03395789,82.1,82.063,39.66923576]
[1771437281929,76.6,82.099,82.063,39.66923576]
[1771437282730,87.5674,82.099,82.063,39.66923576]
[1771437283126,76.6,82.099,82.052,39.49983297]
[1771437283434,3.03395789,82.09,82.056,57.51772608]
[1771437283731,21.9303,82.116,82.056,57.51772608]
[1771437283732,3.03395789,82.08,82.056,18.01789311]
[1771437284529,76.6,82.082,82.056,18.01789311]
[1771437285126,10.9695,82.083,82.056,18.01789311]
[1771437285326,76.6,82.082,82.056,18.01789311]
[1771437285829,10.9695,82.083,82.056,18.01789311]
[1771437286832,3.03395789,82.08,82.056,18.01789311]
[1771437287033,10.9695,82.083,82.056,18.01789311]
[1771437287429,76.6,82.082,82.056,18.01789311]
[1771437287935,10.9692,82.085,82.056,18.01789311]
[1771437289242,3.03395789,82.08,82.056,18.01789311]
[1771437289539,10.9692,82.085,82.056,18.01789311]
[1771437293743,10.9692,82.085,82.056,57.07424254]
[1771437293940,10.3274043,82.118,82.061,10.09202965]
[1771437294145,3.03991184,82.11,82.061,10.09202965]
[1771437294337,76.62,82.109,82.061,10.09202965]
[1771437295048,76.62,82.108,82.061,10.09202965]
[1771437295249,3.03991184,82.1,82.061,10.09202965]
[1771437295635,3.03991184,82.09,82.056,18.01789311]
[1771437295839,76.62,82.089,82.057,10.09202965]
[1771437296141,3.03991184,82.09,82.057,10.09202965]
[1771437296347,76.62,82.089,82.057,10.09202965]
[1771437296546,10.9696,82.082,82.057,10.09202965]
[1771437296746,3.03991184,82.08,82.056,18.01789311]
[1771437296941,10.3274043,82.088,82.056,18.01789311]
[1771437297141,10.9689,82.087,82.056,18.01789311]
[1771437297942,3.03991184,82.09,82.056,18.01789311]
[1771437298848,10.968,82.094,82.057,10.15379516]
[1771437299546,10.9699,82.08,82.056,18.01789311]
[1771437300952,11.05664723,82.072,82.056,9.311e-05]
[1771437301653,25.06775907,82.07,82.056,9.311e-05]
[1771437302344,10.9717,82.067,82.056,9.311e-05]
[1771437302944,11.05664723,82.069,82.056,9.311e-05]
[1771437305348,22.02794723,82.069,82.056,9.311e-05]
[1771437306247,22.02884723,82.062,82.022,10.9774]
[1771437306447,11.05664723,82.061,82.022,10.9774]
[1771437306751,76.98,82.065,82.026,10.15379516]
[1771437307152,10.9717,82.067,82.026,10.15379516]
[1771437307353,87.5917,82.067,82.026,10.15379516]
[1771437309355,10.9724,82.061,82.026,10.15379516]
[1771437310055,11.05664723,82.06,82.026,10.15379516]
[1771437311759,87.5916,82.067,82.027,10.9769]
[1771437311963,87.5916,82.067,82.028,10.15379516]
[1771437312353,10.9719,82.065,82.028,10.15379516]
[1771437313260,10.9726,82.06,82.028,10.15379516]
[1771437313862,11.05664723,82.065,82.028,10.15379516]
[1771437314565,11.05664723,82.098,82.039,10.15379516]
[1771437314755,3.03991184,82.08,82.039,10.15379516]
[1771437315162,13.74344956,82.08,82.039,10.15379516]
[1771437315461,10.9717,82.066,82.039,10.15379516]
[1771437316162,10.9717,82.066,82.026,10.91632]
[1771437316758,21.67523772,82.066,82.026,10.91632]
[1771437317362,10.70353772,82.066,82.026,10.91632]
[1771437318059,10.70353772,82.066,82.028,10.9767]
[1771437318953,10.70353772,82.066,82.028,21.89302]
[1771437319654,10.972,82.064,82.028,21.89302]
[1771437320360,10.972,82.064,82.029,10.91632]
[1771437322365,10.70353772,82.063,82.029,10.91632]
[1771437325968,10.70353772,82.076,82.034,10.91632]
[1771437326768,10.70353772,82.076,82.036,10.91632]
[1771437327663,10.9705,82.075,82.036,10.91632]
[1771437327865,21.67403772,82.075,82.036,10.91632]
[1771437329262,10.9705,82.075,82.036,10.91632]
[1771437329461,10.70353772,82.069,82.026,10.91632]
[1771437330164,10.9716,82.067,82.032,10.91632]
[1771437330365,10.70353772,82.069,82.032,10.91632]
[1771437331666,10.70353772,82.069,82.036,10.91632]
[1771437332472,10.70353772,82.08,82.039,10.91632]
[1771437333367,10.70353772,82.109,82.05,3.03991184]
[1771437333567,10.70353772,82.099,82.058,10.91632]
[1771437334078,10.70353772,82.122,82.081,10.91632]
[1771437334367,78.16,82.136,82.089,10.91632]
[1771437334368,10.70353772,82.134,82.089,10.91632]
[1771437334571,10.70353772,82.134,82.091,10.91632]
[1771437335866,10.70353772,82.134,82.092,10.91632]
[1771437336467,78.22,82.141,82.064,76.64]
[1771437336468,78.22,82.141,82.103,10.91632]
[1771437336668,10.70353772,82.159,82.111,10.91632]
[1771437337174,10.70353772,82.149,82.102,10.9668]
[1771437337365,10.70353772,82.149,82.096,10.91632]
[1771437337366,3.03991184,82.14,82.096,10.91632]
[1771437337563,10.70353772,82.139,82.096,10.91632]
[1771437339175,10.70353772,82.139,82.099,10.9672]
[1771437339371,76.64,82.146,82.1,13.95623184]
[1771437339577,76.64,82.146,82.101,10.91632]
[1771437340676,76.64,82.146,82.102,21.88312]
[1771437341475,76.64,82.146,82.105,10.9664]
[1771437342078,3.03991184,82.15,82.105,10.9664]
[1771437342079,3.03991184,82.15,82.106,10.91632]
[1771437343080,13.74344956,82.15,82.106,10.91632]
[1771437343977,10.70353772,82.149,82.106,10.91632]
[1771437344379,21.66433772,82.148,82.106,10.91632]
[1771437344771,10.70353772,82.147,82.106,10.91632]
[1771437346769,10.70353772,82.147,82.109,12.71308479]
[1771437347081,12.68430769,82.119,82.067,12.71308479]
[1771437347281,12.68430769,82.099,82.051,12.71308479]
[1771437347483,12.68430769,82.089,82.051,12.71308479]
[1771437347974,12.68430769,82.089,82.039,12.71308479]
[1771437348783,12.68430769,82.105,82.061,12.71308479]
[1771437349776,12.68430769,82.105,82.065,10.9717]
[1771437349977,12.68430769,82.105,82.066,12.71308479]
[1771437350372,12.68430769,82.105,82.067,10.9714]
[1771437351987,21.9244,82.137,82.06,3.03991184]
[1771437351988,12.68430769,82.114,82.068,12.71308479]
[1771437352190,12.68430769,82.109,82.068,12.71308479]
[1771437352884,3.03991184,82.1,82.055,12.71308479]
[1771437353092,3.03991184,82.09,82.042,12.71308479]
[1771437353691,15.72421953,82.09,82.051,10.9736]
[1771437353891,15.72460996,82.09,82.051,10.9736]
[1771437354293,12.68430769,82.079,82.042,10.9747]
[1771437356393,12.68430769,82.079,82.048,10.9739]
[1771437357794,12.68430769,82.079,82.041,10.975]
[1771437357994,12.68430769,82.079,82.031,12.06262351]
[1771437358194,15.71247838,82.07,82.031,12.06262351]
[1771437358898,15.71247838,82.07,82.034,10.9759]
[1771437359698,15.71247838,82.07,82.025,5.12039012]
[1771437359699,12.67217611,82.067,82.028,10.9767]
[1771437359997,3.04030227,82.06,82.028,10.9767]
[1771437360195,76.64,82.082,82.043,12.06262351]
[1771437360498,12.67217611,82.088,82.043,12.06262351]
[1771437360698,3.04030227,82.08,82.043,12.06262351]
[1771437360999,12.67217611,82.079,82.034,10.9759]
[1771437361194,12.67217611,82.079,82.03,12.06262351]
[1771437361703,12.67217611,82.079,82.041,10.975]
[1771437363000,12.67217611,82.079,82.047,10.9742]
[1771437371208,12.67217611,82.119,82.07,3.04030227]
[1771437371509,12.67217611,82.119,82.071,12.06262351]
[1771437371909,90.64350227,82.13,82.089,10.9686]
[1771437372111,14.00350227,82.13,82.089,10.9686]
[1771437372611,10.9634,82.128,82.089,10.9686]
[1771437372811,23.63557611,82.128,82.089,10.9686]
[1771437373115,12.67217611,82.127,82.089,10.9686]
[1771437375113,12.67217611,82.127,82.097,10.9675]
[1771437375517,12.67217611,82.127,82.09,13.20740696]
[1771437376714,12.67217611,82.127,82.096,10.9676]
[1771437388113,3.04030227,82.12,82.061,13.20740696]
[1771437388319,3.04030227,82.12,82.041,21.9498]
[1771437388320,12.4186773,82.099,82.049,13.20740696]
[1771437388518,12.4186773,82.099,82.051,13.20740696]
[1771437389120,12.4186773,82.099,82.065,10.9717]
[1771437390010,12.4186773,82.098,82.051,13.20740696]
[1771437391818,12.4186773,82.098,82.063,10.9719]
[1771437398528,80.82,82.106,82.061,13.20740696]
[1771437399225,12.4186773,82.106,82.061,13.20740696]
[1771437399725,12.4186773,82.106,82.072,10.9708]
[1771437399921,12.4186773,82.106,82.062,13.20740696]
[1771437400124,3.04030227,82.1,82.062,13.20740696]
[1771437400325,3.04030227,82.1,82.073,10.9706]
[1771437400530,12.4186773,82.106,82.073,10.9706]
[1771437408416,13.26458817,82.099,82.073,10.9706]
[1771437408617,84.02030227,82.11,82.078,10.97]
[1771437408830,13.26458817,82.124,82.072,13.51201565]
[1771437409128,13.26458817,82.135,82.1,3.04030227]
[1771437409427,13.26458817,82.147,82.101,13.51201565]
[1771437409617,10.961,82.146,82.101,13.51201565]
[1771437409821,24.22558817,82.146,82.103,13.51201565]
[1771437410019,13.26458817,82.145,82.103,13.51201565]
[1771437410929,10.9613,82.144,82.103,13.51201565]
[1771437411230,13.26458817,82.143,82.103,13.51201565]
[1771437411928,13.26458817,82.143,82.105,24.47831565]
[1771437413432,13.26458817,82.143,82.106,13.51201565]
[1771437413633,13.26458817,82.119,82.07,16.55231792]
[1771437414932,13.26458817,82.119,82.083,10.9693]
[1771437415229,21.9165,82.167,82.044,21.9491]
[1771437415230,13.26458817,82.1,82.044,13.51201565]
[1771437415435,79.70030227,82.11,82.061,13.51201565]
[1771437415929,79.69877796,82.11,82.061,13.51201565]
[1771437416134,13.26458817,82.109,82.061,13.51201565]
[1771437416730,13.26458817,82.109,82.062,24.48411565]
[1771437417833,10.9669,82.102,82.062,24.48411565]
[1771437420232,76.66,82.11,82.065,13.19343159]
[1771437420434,79.69877796,82.11,82.065,13.19343159]
[1771437421231,12.89222044,82.121,82.081,13.19343159]
[1771437421435,12.89222044,82.119,82.07,16.23220955]
[1771437422126,12.89222044,82.119,82.038,61.0]
[1771437422127,12.89222044,82.109,82.069,10.9712]
[1771437422331,15.9309984,82.1,82.057,13.19343159]
[1771437423332,12.89222044,82.1,82.057,13.19343159]
[1771437423537,76.66,82.113,82.07,13.19343159]
[1771437423739,10.9652,82.115,82.07,13.19343159]
[1771437424830,10.9652,82.115,82.072,13.19343159]
[1771437429841,10.9652,82.115,82.073,10.9706]
[1771437430135,3.03877796,82.12,82.074,13.19343159]
[1771437430838,15.9309984,82.12,82.074,13.19343159]
[1771437431943,15.9309984,82.12,82.081,10.9696]
[1771437435247,14.25902507,82.146,82.095,13.8403871]
[1771437435447,14.25902507,82.146,82.101,13.8403871]
[1771437435836,14.25902507,82.146,82.115,10.9651]
[1771437436753,14.25902507,82.146,82.111,13.8403871]
[1771437437344,10.9601,82.153,82.113,13.8403871]
[1771437438249,10.9601,82.153,82.114,10.9652]
[1771437438446,14.25902507,82.156,82.114,10.9652]
[1771437439351,97.05902507,82.156,82.114,10.9652]
[1771437440752,14.25902507,82.155,82.114,10.9652]
[1771437441657,14.25902507,82.166,82.121,13.8403871]
[1771437442350,14.25902507,82.176,82.133,10.9627]
[1771437442652,14.25902507,82.174,82.133,24.8030871]
[1771437443253,5.0,82.185,82.088,12.19]
[1771437443254,5.0,82.185,82.147,10.9607]
[1771437443554,5.0,82.185,82.148,13.8403871]
[1771437445753,19.25902507,82.185,82.148,13.8403871]
[1771437445958,17.29780303,82.18,82.138,13.8403871]
[1771437447666,17.29780303,82.18,82.139,10.9619]